[Event "Live Chess"]
[Site "Chess.com"]
[Date "2010.12.14"]
[Round "-"]
[White "hipposcottimus"]
[Black "lantink"]
[Result "0-1"]
[CurrentPosition "8/8/1k2q2p/1ppp4/8/5PPK/5R1P/8 w - -"]
[Timezone "UTC"]
[ECO "C40"]
[ECOUrl "https://www.chess.com/openings/Kings-Pawn-Opening-Kings-Knight-McConnell-Defense-3.Bc4"]
[UTCDate "2010.12.14"]
[UTCTime "10:49:30"]
[WhiteElo "1608"]
[BlackElo "1923"]
[TimeControl "60"]
[Termination "lantink won on time"]
[StartTime "10:49:30"]
[EndDate "2010.12.14"]
[EndTime "10:51:41"]
[Link "https://www.chess.com/game/live/77171533"]

1. e4 {[%clk 0:01:00]} 1... e5 {[%clk 0:01:00]} 2. Nf3 {[%clk 0:00:58.2]} 2... Qf6 {[%clk 0:00:59.6]} 3. Bc4 {[%clk 0:00:57.8]} 3... h6 {[%clk 0:00:58.8]} 4. Nc3 {[%clk 0:00:57.5]} 4... c6 {[%clk 0:00:58.4]} 5. Bxf7+ {[%clk 0:00:55.8]} 5... Qxf7 {[%clk 0:00:56.4]} 6. d4 {[%clk 0:00:55.6]} 6... exd4 {[%clk 0:00:55.4]} 7. Nxd4 {[%clk 0:00:55.3]} 7... Qf6 {[%clk 0:00:54.8]} 8. Nf5 {[%clk 0:00:55]} 8... d6 {[%clk 0:00:53.7]} 9. O-O {[%clk 0:00:50.9]} 9... Bxf5 {[%clk 0:00:52.7]} 10. exf5 {[%clk 0:00:50.6]} 10... Qxf5 {[%clk 0:00:52.2]} 11. Re1+ {[%clk 0:00:50.4]} 11... Kd7 {[%clk 0:00:51.7]} 12. Qe2 {[%clk 0:00:50]} 12... Na6 {[%clk 0:00:50]} 13. Be3 {[%clk 0:00:45.6]} 13... Nf6 {[%clk 0:00:48.5]} 14. Qd2 {[%clk 0:00:44.4]} 14... Re8 {[%clk 0:00:46.9]} 15. Bxa7 {[%clk 0:00:42.5]} 15... Nb4 {[%clk 0:00:44.5]} 16. a3 {[%clk 0:00:37.4]} 16... Nxc2 {[%clk 0:00:43.6]} 17. Rxe8 {[%clk 0:00:35.3]} 17... Nxe8 {[%clk 0:00:41.7]} 18. Rc1 {[%clk 0:00:32.9]} 18... Qg5 {[%clk 0:00:35.4]} 19. Qxc2 {[%clk 0:00:31.1]} 19... Be7 {[%clk 0:00:33.4]} 20. Re1 {[%clk 0:00:27]} 20... Rf8 {[%clk 0:00:31.8]} 21. Qe2 {[%clk 0:00:25.4]} 21... Rf7 {[%clk 0:00:31.2]} 22. Be3 {[%clk 0:00:24.2]} 22... Qa5 {[%clk 0:00:29.9]} 23. Ne4 {[%clk 0:00:22.1]} 23... d5 {[%clk 0:00:29]} 24. Nc5+ {[%clk 0:00:20.5]} 24... Bxc5 {[%clk 0:00:27.4]} 25. Bxc5 {[%clk 0:00:19.8]} 25... Qxc5 {[%clk 0:00:26.5]} 26. Qxe8+ {[%clk 0:00:18.9]} 26... Kc7 {[%clk 0:00:24.2]} 27. Qxf7+ {[%clk 0:00:17.9]} 27... Kb6 {[%clk 0:00:23.9]} 28. Qf3 {[%clk 0:00:16.1]} 28... Qb5 {[%clk 0:00:22.5]} 29. b4 {[%clk 0:00:14.5]} 29... Ka6 {[%clk 0:00:21.7]} 30. Rb1 {[%clk 0:00:13.6]} 30... Qa4 {[%clk 0:00:20.8]} 31. Qe2+ {[%clk 0:00:11.3]} 31... b5 {[%clk 0:00:20.3]} 32. Qe7 {[%clk 0:00:09.3]} 32... Kb6 {[%clk 0:00:18.3]} 33. Re1 {[%clk 0:00:09]} 33... Qa7 {[%clk 0:00:16.2]} 34. Qxg7 {[%clk 0:00:08.6]} 34... Qxg7 {[%clk 0:00:15.1]} 35. f3 {[%clk 0:00:06.5]} 35... Qb2 {[%clk 0:00:14.6]} 36. Rf1 {[%clk 0:00:06]} 36... Qxa3 {[%clk 0:00:13.1]} 37. Rf2 {[%clk 0:00:05.7]} 37... Qxb4 {[%clk 0:00:12.4]} 38. Rf1 {[%clk 0:00:05.4]} 38... Qb3 {[%clk 0:00:11.4]} 39. Kf2 {[%clk 0:00:05.1]} 39... Qb4 {[%clk 0:00:10.9]} 40. Kg3 {[%clk 0:00:04.8]} 40... Qc5 {[%clk 0:00:10.3]} 41. Rf2 {[%clk 0:00:04.5]} 41... Qd6+ {[%clk 0:00:09.8]} 42. Kh3 {[%clk 0:00:02.7]} 42... c5 {[%clk 0:00:09.4]} 43. g3 {[%clk 0:00:02.2]} 43... Qe6+ {[%clk 0:00:09.1]} 0-1

[Event "Live Chess"]
[Site "Chess.com"]
[Date "2010.12.14"]
[Round "-"]
[White "lantink"]
[Black "hipposcottimus"]
[Result "1-0"]
[CurrentPosition "4r1k1/p6p/1p4pP/2p2b2/8/2q2BB1/5PRK/8 b - -"]
[Timezone "UTC"]
[ECO "C20"]
[ECOUrl "https://www.chess.com/openings/Kings-Pawn-Opening-Napoleon-Attack"]
[UTCDate "2010.12.14"]
[UTCTime "10:46:45"]
[WhiteElo "1890"]
[BlackElo "1611"]
[TimeControl "60"]
[Termination "lantink won on time"]
[StartTime "10:46:45"]
[EndDate "2010.12.14"]
[EndTime "10:48:59"]
[Link "https://www.chess.com/game/live/77171030"]

1. e4 {[%clk 0:01:00]} 1... e5 {[%clk 0:01:00]} 2. Qf3 {[%clk 0:00:59.7]} 2... Nc6 {[%clk 0:00:59.7]} 3. d3 {[%clk 0:00:59.4]} 3... Nd4 {[%clk 0:00:58.6]} 4. Qd1 {[%clk 0:00:58.1]} 4... f5 {[%clk 0:00:56.6]} 5. c3 {[%clk 0:00:57.4]} 5... Ne6 {[%clk 0:00:52]} 6. exf5 {[%clk 0:00:56.7]} 6... Nc5 {[%clk 0:00:51.7]} 7. Qf3 {[%clk 0:00:56]} 7... Nf6 {[%clk 0:00:51.2]} 8. Nh3 {[%clk 0:00:55]} 8... d6 {[%clk 0:00:50.5]} 9. Be2 {[%clk 0:00:53.8]} 9... Be7 {[%clk 0:00:49.5]} 10. Ng5 {[%clk 0:00:52.2]} 10... O-O {[%clk 0:00:48.4]} 11. g4 {[%clk 0:00:51.4]} 11... e4 {[%clk 0:00:45.4]} 12. dxe4 {[%clk 0:00:49.1]} 12... Ncxe4 {[%clk 0:00:44.4]} 13. Nxe4 {[%clk 0:00:48]} 13... d5 {[%clk 0:00:44.1]} 14. Nxf6+ {[%clk 0:00:46.8]} 14... Bxf6 {[%clk 0:00:43.8]} 15. Qh3 {[%clk 0:00:45.8]} 15... Re8 {[%clk 0:00:43.6]} 16. Rg1 {[%clk 0:00:44.2]} 16... Qe7 {[%clk 0:00:35.7]} 17. Qf3 {[%clk 0:00:42.5]} 17... b6 {[%clk 0:00:29.1]} 18. Na3 {[%clk 0:00:41.9]} 18... Bb7 {[%clk 0:00:28.4]} 19. Nb5 {[%clk 0:00:40.2]} 19... d4 {[%clk 0:00:27.1]} 20. Qd3 {[%clk 0:00:35.4]} 20... c6 {[%clk 0:00:22.2]} 21. Nxd4 {[%clk 0:00:33.1]} 21... Rad8 {[%clk 0:00:21.8]} 22. Be3 {[%clk 0:00:31.4]} 22... c5 {[%clk 0:00:21.2]} 23. Nc6 {[%clk 0:00:26.2]} 23... Bxc6 {[%clk 0:00:17.7]} 24. Qc2 {[%clk 0:00:25.2]} 24... Qe6 {[%clk 0:00:15.9]} 25. Rd1 {[%clk 0:00:24.3]} 25... Qe7 {[%clk 0:00:14.9]} 26. Rxd8 {[%clk 0:00:23.2]} 26... Rxd8 {[%clk 0:00:14.4]} 27. Qb3+ {[%clk 0:00:22.5]} 27... Kh8 {[%clk 0:00:12.4]} 28. Qc2 {[%clk 0:00:21.9]} 28... Be4 {[%clk 0:00:11.2]} 29. Qb3 {[%clk 0:00:20]} 29... Re8 {[%clk 0:00:10.7]} 30. g5 {[%clk 0:00:19.2]} 30... Bxf5 {[%clk 0:00:08.5]} 31. gxf6 {[%clk 0:00:17.7]} 31... Qxf6 {[%clk 0:00:08.2]} 32. Qc2 {[%clk 0:00:16.6]} 32... Qh6 {[%clk 0:00:06.7]} 33. h4 {[%clk 0:00:15.5]} 33... Qe6 {[%clk 0:00:06.3]} 34. h5 {[%clk 0:00:14.4]} 34... Bxc2 {[%clk 0:00:05.5]} 35. h6 {[%clk 0:00:12.6]} 35... Qxa2 {[%clk 0:00:04.9]} 36. Kf1 {[%clk 0:00:11.4]} 36... Kg8 {[%clk 0:00:04.5]} 37. Kg2 {[%clk 0:00:10.6]} 37... g6 {[%clk 0:00:03.4]} 38. Bf3 {[%clk 0:00:09.5]} 38... Qxb2 {[%clk 0:00:03]} 39. Kh2 {[%clk 0:00:08.8]} 39... Bd3 {[%clk 0:00:02.6]} 40. Rg2 {[%clk 0:00:07.8]} 40... Qxc3 {[%clk 0:00:02.1]} 41. Bf4 {[%clk 0:00:07.1]} 41... Bf5 {[%clk 0:00:00.8]} 42. Bg3 {[%clk 0:00:06.1]} 1-0

[Event "Live Chess"]
[Site "Chess.com"]
[Date "2010.12.14"]
[Round "-"]
[White "hipposcottimus"]
[Black "lantink"]
[Result "0-1"]
[CurrentPosition "4k3/1p2bp2/2p4p/3q2p1/6Q1/4B1P1/P4PKP/3r4 w - -"]
[Timezone "UTC"]
[ECO "C40"]
[ECOUrl "https://www.chess.com/openings/Kings-Pawn-Opening-Kings-Knight-McConnell-Defense"]
[UTCDate "2010.12.14"]
[UTCTime "10:44:17"]
[WhiteElo "1614"]
[BlackElo "1847"]
[TimeControl "60"]
[Termination "lantink won on time"]
[StartTime "10:44:17"]
[EndDate "2010.12.14"]
[EndTime "10:46:21"]
[Link "https://www.chess.com/game/live/77170539"]

1. e4 {[%clk 0:01:00]} 1... e5 {[%clk 0:01:00]} 2. Nf3 {[%clk 0:00:59.6]} 2... Qf6 {[%clk 0:00:59.6]} 3. Nc3 {[%clk 0:00:57.7]} 3... c6 {[%clk 0:00:58.5]} 4. d3 {[%clk 0:00:54.1]} 4... h6 {[%clk 0:00:57.8]} 5. d4 {[%clk 0:00:52.6]} 5... d6 {[%clk 0:00:57.3]} 6. dxe5 {[%clk 0:00:51.5]} 6... dxe5 {[%clk 0:00:56.8]} 7. Bc4 {[%clk 0:00:50.7]} 7... Bd6 {[%clk 0:00:55.5]} 8. Bb3 {[%clk 0:00:50.3]} 8... Bd7 {[%clk 0:00:53.7]} 9. Be3 {[%clk 0:00:50]} 9... Na6 {[%clk 0:00:52.8]} 10. O-O {[%clk 0:00:49.6]} 10... Rd8 {[%clk 0:00:52]} 11. Nd2 {[%clk 0:00:46.6]} 11... Qg6 {[%clk 0:00:50.8]} 12. Nc4 {[%clk 0:00:37.8]} 12... Be7 {[%clk 0:00:45.1]} 13. Nxe5 {[%clk 0:00:28.4]} 13... Qf6 {[%clk 0:00:43.9]} 14. Nxd7 {[%clk 0:00:27.4]} 14... Rxd7 {[%clk 0:00:42.8]} 15. Qe2 {[%clk 0:00:27.1]} 15... Qg6 {[%clk 0:00:41.4]} 16. Qf3 {[%clk 0:00:26]} 16... Nb4 {[%clk 0:00:40.4]} 17. e5 {[%clk 0:00:24.3]} 17... Nxc2 {[%clk 0:00:39.2]} 18. Bxc2 {[%clk 0:00:21.5]} 18... Qxc2 {[%clk 0:00:38.2]} 19. Ne4 {[%clk 0:00:21.2]} 19... Qxb2 {[%clk 0:00:36.5]} 20. Rab1 {[%clk 0:00:19.5]} 20... Qxe5 {[%clk 0:00:35.5]} 21. Rbd1 {[%clk 0:00:19.1]} 21... Qf6 {[%clk 0:00:34.8]} 22. Rxd7 {[%clk 0:00:17.7]} 22... Kxd7 {[%clk 0:00:34.2]} 23. Rd1+ {[%clk 0:00:17.4]} 23... Ke8 {[%clk 0:00:33.2]} 24. Nc5 {[%clk 0:00:16.9]} 24... g6 {[%clk 0:00:32.2]} 25. Nd7 {[%clk 0:00:16]} 25... Qe6 {[%clk 0:00:29.8]} 26. Bxa7 {[%clk 0:00:12.6]} 26... Nf6 {[%clk 0:00:28.8]} 27. Bb6 {[%clk 0:00:11.5]} 27... Nxd7 {[%clk 0:00:27.5]} 28. Rxd7 {[%clk 0:00:08.9]} 28... Qxd7 {[%clk 0:00:25.7]} 29. Qe2 {[%clk 0:00:07.1]} 29... g5 {[%clk 0:00:24.8]} 30. Qf1 {[%clk 0:00:05]} 30... Rg8 {[%clk 0:00:23.9]} 31. g3 {[%clk 0:00:04.7]} 31... Rg6 {[%clk 0:00:23.1]} 32. Kg2 {[%clk 0:00:04.4]} 32... Rd6 {[%clk 0:00:22.3]} 33. Be3 {[%clk 0:00:04.1]} 33... Rd1 {[%clk 0:00:21]} 34. Qe2 {[%clk 0:00:03.7]} 34... Qd5+ {[%clk 0:00:19]} 35. Qf3 {[%clk 0:00:03.3]} 35... Qd6 {[%clk 0:00:14.8]} 36. Qg4 {[%clk 0:00:00.9]} 36... Qd5+ {[%clk 0:00:13.3]} 0-1

[Event "Live Chess"]
[Site "Chess.com"]
[Date "2010.12.14"]
[Round "-"]
[White "lantink"]
[Black "hipposcottimus"]
[Result "1-0"]
[CurrentPosition "6k1/ppp3np/7p/4r3/P3p3/2P2r1P/1P2K1RP/6R1 b - -"]
[Timezone "UTC"]
[ECO "C20"]
[ECOUrl "https://www.chess.com/openings/Kings-Pawn-Opening-Napoleon-Attack"]
[UTCDate "2010.12.14"]
[UTCTime "10:41:49"]
[WhiteElo "1783"]
[BlackElo "1618"]
[TimeControl "60"]
[Termination "lantink won on time"]
[StartTime "10:41:49"]
[EndDate "2010.12.14"]
[EndTime "10:43:53"]
[Link "https://www.chess.com/game/live/77170035"]

1. e4 {[%clk 0:01:00]} 1... e5 {[%clk 0:01:00]} 2. Qf3 {[%clk 0:00:59.7]} 2... Nc6 {[%clk 0:00:59.7]} 3. d3 {[%clk 0:00:59.3]} 3... Nd4 {[%clk 0:00:58.2]} 4. Qd1 {[%clk 0:00:57.7]} 4... d5 {[%clk 0:00:55.8]} 5. exd5 {[%clk 0:00:56.2]} 5... Qxd5 {[%clk 0:00:55.1]} 6. c3 {[%clk 0:00:55.9]} 6... Nc6 {[%clk 0:00:53.2]} 7. Qf3 {[%clk 0:00:55.1]} 7... e4 {[%clk 0:00:46.8]} 8. dxe4 {[%clk 0:00:53.7]} 8... Qe5 {[%clk 0:00:46.5]} 9. Bd3 {[%clk 0:00:51.5]} 9... Bd6 {[%clk 0:00:45.8]} 10. Na3 {[%clk 0:00:50.1]} 10... Nf6 {[%clk 0:00:44]} 11. Nc4 {[%clk 0:00:49.2]} 11... Qc5 {[%clk 0:00:41]} 12. Nxd6+ {[%clk 0:00:48.2]} 12... Qxd6 {[%clk 0:00:39.9]} 13. Nh3 {[%clk 0:00:47.2]} 13... O-O {[%clk 0:00:38.8]} 14. O-O {[%clk 0:00:46.3]} 14... Re8 {[%clk 0:00:38.1]} 15. Re1 {[%clk 0:00:45.7]} 15... Bxh3 {[%clk 0:00:35.9]} 16. gxh3 {[%clk 0:00:44.7]} 16... Re5 {[%clk 0:00:32.6]} 17. Qg3 {[%clk 0:00:43]} 17... Nh5 {[%clk 0:00:29.9]} 18. Qf3 {[%clk 0:00:41.6]} 18... Qg6+ {[%clk 0:00:27.2]} 19. Kf1 {[%clk 0:00:39.5]} 19... Rf8 {[%clk 0:00:22.7]} 20. a4 {[%clk 0:00:36.6]} 20... Ne7 {[%clk 0:00:20.3]} 21. Ke2 {[%clk 0:00:35.8]} 21... Qh6 {[%clk 0:00:19.4]} 22. Bxh6 {[%clk 0:00:34.6]} 22... gxh6 {[%clk 0:00:19.1]} 23. Rg1+ {[%clk 0:00:33.7]} 23... Ng7 {[%clk 0:00:18]} 24. Qf6 {[%clk 0:00:32.4]} 24... Ng6 {[%clk 0:00:17.1]} 25. f4 {[%clk 0:00:29.6]} 25... Nh5 {[%clk 0:00:11.8]} 26. Qe7 {[%clk 0:00:23.8]} 26... Nxf4+ {[%clk 0:00:11.4]} 27. Ke3 {[%clk 0:00:20.2]} 27... Rxe7 {[%clk 0:00:11.1]} 28. e5 {[%clk 0:00:19.1]} 28... Nh5 {[%clk 0:00:10]} 29. Bxg6 {[%clk 0:00:18.1]} 29... Rxe5+ {[%clk 0:00:09.2]} 30. Be4+ {[%clk 0:00:15]} 30... Ng7 {[%clk 0:00:05.7]} 31. Rad1 {[%clk 0:00:14.6]} 31... f5 {[%clk 0:00:04.9]} 32. Rg2 {[%clk 0:00:12.9]} 32... fxe4 {[%clk 0:00:04]} 33. Rdg1 {[%clk 0:00:11.4]} 33... Rf3+ {[%clk 0:00:03.2]} 34. Ke2 {[%clk 0:00:10.3]} 1-0

[Event "Live Chess"]
[Site "Chess.com"]
[Date "2010.12.14"]
[Round "-"]
[White "hipposcottimus"]
[Black "lantink"]
[Result "0-1"]
[CurrentPosition "2r5/1p2bk2/pP1p1p2/P2P1R2/3P1KP1/2r5/6PP/8 w - -"]
[Timezone "UTC"]
[ECO "C40"]
[ECOUrl "https://www.chess.com/openings/Kings-Pawn-Opening-Kings-Knight-McConnell-Defense-3.Bc4"]
[UTCDate "2010.12.14"]
[UTCTime "10:39:10"]
[WhiteElo "1625"]
[BlackElo "1678"]
[TimeControl "60"]
[Termination "lantink won on time"]
[StartTime "10:39:10"]
[EndDate "2010.12.14"]
[EndTime "10:41:26"]
[Link "https://www.chess.com/game/live/77169539"]

1. e4 {[%clk 0:01:00]} 1... e5 {[%clk 0:01:00]} 2. Nf3 {[%clk 0:00:59.7]} 2... Qf6 {[%clk 0:00:59.7]} 3. Bc4 {[%clk 0:00:59.4]} 3... d6 {[%clk 0:00:59.1]} 4. Nc3 {[%clk 0:00:58.7]} 4... c6 {[%clk 0:00:58.7]} 5. b4 {[%clk 0:00:55.9]} 5... Qg6 {[%clk 0:00:56.8]} 6. b5 {[%clk 0:00:54.3]} 6... c5 {[%clk 0:00:55.4]} 7. Nd5 {[%clk 0:00:52]} 7... Kd8 {[%clk 0:00:53.2]} 8. d3 {[%clk 0:00:47]} 8... Bd7 {[%clk 0:00:51.6]} 9. Bg5+ {[%clk 0:00:45.9]} 9... Kc8 {[%clk 0:00:49.9]} 10. b6 {[%clk 0:00:40.3]} 10... a6 {[%clk 0:00:48]} 11. Nc7 {[%clk 0:00:39.2]} 11... Nc6 {[%clk 0:00:40.1]} 12. a4 {[%clk 0:00:38.3]} 12... Rb8 {[%clk 0:00:38.6]} 13. a5 {[%clk 0:00:37.4]} 13... Nd4 {[%clk 0:00:36.9]} 14. Nxd4 {[%clk 0:00:35.3]} 14... cxd4 {[%clk 0:00:36.2]} 15. Bh4 {[%clk 0:00:33.9]} 15... Bc6 {[%clk 0:00:34.8]} 16. Bg3 {[%clk 0:00:32.6]} 16... Kd7 {[%clk 0:00:33.8]} 17. c3 {[%clk 0:00:28.3]} 17... dxc3 {[%clk 0:00:32.2]} 18. Bd5 {[%clk 0:00:26.8]} 18... Bxd5 {[%clk 0:00:30.8]} 19. Nxd5 {[%clk 0:00:25.6]} 19... h5 {[%clk 0:00:28.6]} 20. Qa4+ {[%clk 0:00:24.8]} 20... Ke6 {[%clk 0:00:26.5]} 21. Nc7+ {[%clk 0:00:23.6]} 21... Ke7 {[%clk 0:00:24.7]} 22. Nd5+ {[%clk 0:00:22.4]} 22... Ke6 {[%clk 0:00:22.7]} 23. Nc7+ {[%clk 0:00:21.5]} 23... Ke7 {[%clk 0:00:22]} 24. Qc4 {[%clk 0:00:20.4]} 24... Rc8 {[%clk 0:00:20.4]} 25. Qxc3 {[%clk 0:00:19.3]} 25... h4 {[%clk 0:00:19.2]} 26. Nd5+ {[%clk 0:00:18.3]} 26... Kd7 {[%clk 0:00:16.9]} 27. Qd2 {[%clk 0:00:13.2]} 27... hxg3 {[%clk 0:00:16.2]} 28. fxg3 {[%clk 0:00:11.3]} 28... Nf6 {[%clk 0:00:15.6]} 29. O-O {[%clk 0:00:10.1]} 29... Nxd5 {[%clk 0:00:14.8]} 30. exd5 {[%clk 0:00:09.8]} 30... Be7 {[%clk 0:00:14]} 31. Qf2 {[%clk 0:00:08]} 31... f6 {[%clk 0:00:13]} 32. d4 {[%clk 0:00:06.5]} 32... e4 {[%clk 0:00:11.8]} 33. Qf5+ {[%clk 0:00:06.2]} 33... Qxf5 {[%clk 0:00:10.6]} 34. Rxf5 {[%clk 0:00:05.9]} 34... Ke8 {[%clk 0:00:09.8]} 35. Re1 {[%clk 0:00:05.6]} 35... Kf7 {[%clk 0:00:09.2]} 36. Rxe4 {[%clk 0:00:04.7]} 36... Rhg8 {[%clk 0:00:08.3]} 37. Ref4 {[%clk 0:00:04]} 37... g6 {[%clk 0:00:07.1]} 38. g4 {[%clk 0:00:03.7]} 38... gxf5 {[%clk 0:00:06.2]} 39. Rxf5 {[%clk 0:00:03.4]} 39... Rc1+ {[%clk 0:00:05.3]} 40. Kf2 {[%clk 0:00:02.1]} 40... Rgc8 {[%clk 0:00:05]} 41. Ke3 {[%clk 0:00:01.2]} 41... R1c2 {[%clk 0:00:04.7]} 42. Kf4 {[%clk 0:00:00.7]} 42... R2c3 {[%clk 0:00:04.4]} 0-1

[Event "Live Chess"]
[Site "Chess.com"]
[Date "2010.12.14"]
[Round "-"]
[White "hipposcottimus"]
[Black "likeeloy"]
[Result "0-1"]
[CurrentPosition "5bk1/6pp/p1p1p3/8/2P5/P7/3r1qPP/7K b - -"]
[Timezone "UTC"]
[ECO "B20"]
[ECOUrl "https://www.chess.com/openings/Sicilian-Defense"]
[UTCDate "2010.12.14"]
[UTCTime "10:36:56"]
[WhiteElo "1635"]
[BlackElo "1547"]
[TimeControl "60"]
[Termination "likeeloy won by resignation"]
[StartTime "10:36:56"]
[EndDate "2010.12.14"]
[EndTime "10:38:39"]
[Link "https://www.chess.com/game/live/77169099"]

1. e4 {[%clk 0:01:00]} 1... c5 {[%clk 0:01:00]} 2. Bb5 {[%clk 0:00:57.9]} 2... a6 {[%clk 0:00:58.3]} 3. Be2 {[%clk 0:00:57.6]} 3... e6 {[%clk 0:00:55]} 4. Nf3 {[%clk 0:00:57.3]} 4... b5 {[%clk 0:00:52.8]} 5. c4 {[%clk 0:00:56.9]} 5... Bb7 {[%clk 0:00:51.5]} 6. d3 {[%clk 0:00:54.2]} 6... bxc4 {[%clk 0:00:49.8]} 7. dxc4 {[%clk 0:00:52.5]} 7... Bxe4 {[%clk 0:00:48.9]} 8. Nc3 {[%clk 0:00:52.1]} 8... Qa5 {[%clk 0:00:46.8]} 9. O-O {[%clk 0:00:49.7]} 9... Bxf3 {[%clk 0:00:43.2]} 10. Bxf3 {[%clk 0:00:49.4]} 10... Nc6 {[%clk 0:00:39.9]} 11. Ne4 {[%clk 0:00:49]} 11... Qc7 {[%clk 0:00:38]} 12. Nd6+ {[%clk 0:00:48.6]} 12... Bxd6 {[%clk 0:00:36.4]} 13. Bxc6 {[%clk 0:00:48.3]} 13... dxc6 {[%clk 0:00:35.1]} 14. Be3 {[%clk 0:00:47.6]} 14... Ne7 {[%clk 0:00:33.5]} 15. f4 {[%clk 0:00:46.2]} 15... O-O {[%clk 0:00:32.4]} 16. Bd2 {[%clk 0:00:41.6]} 16... Rad8 {[%clk 0:00:31.1]} 17. a3 {[%clk 0:00:41.2]} 17... Nf5 {[%clk 0:00:28.9]} 18. Qc1 {[%clk 0:00:40.8]} 18... Nd4 {[%clk 0:00:23.3]} 19. b4 {[%clk 0:00:38]} 19... Ne2+ {[%clk 0:00:22]} 20. Kh1 {[%clk 0:00:35.8]} 20... Nxc1 {[%clk 0:00:21.1]} 21. Raxc1 {[%clk 0:00:35.5]} 21... e5 {[%clk 0:00:18]} 22. bxc5 {[%clk 0:00:34.4]} 22... Bxc5 {[%clk 0:00:17]} 23. fxe5 {[%clk 0:00:33.2]} 23... Rxd2 {[%clk 0:00:15.8]} 24. e6 {[%clk 0:00:31]} 24... fxe6 {[%clk 0:00:14.2]} 25. Rxf8+ {[%clk 0:00:29.2]} 25... Bxf8 {[%clk 0:00:12.9]} 26. Rf1 {[%clk 0:00:28.9]} 26... Qe5 {[%clk 0:00:08.9]} 27. Kg1 {[%clk 0:00:28.6]} 27... Qe2 {[%clk 0:00:07.6]} 28. Rf2 {[%clk 0:00:27.1]} 28... Qxf2+ {[%clk 0:00:06.1]} 29. Kh1 {[%clk 0:00:25.8]} 0-1

[Event "Live Chess"]
[Site "Chess.com"]
[Date "2010.12.14"]
[Round "-"]
[White "hipposcottimus"]
[Black "sorinturturea"]
[Result "0-1"]
[CurrentPosition "5r2/p4pk1/1p3qp1/3p1RNp/8/6Q1/PP3PPP/n1r3K1 w - -"]
[Timezone "UTC"]
[ECO "B00"]
[ECOUrl "https://www.chess.com/openings/Owens-Defense-2.d4-Bb7"]
[UTCDate "2010.12.14"]
[UTCTime "10:34:45"]
[WhiteElo "1644"]
[BlackElo "1591"]
[TimeControl "60"]
[Termination "sorinturturea won by checkmate"]
[StartTime "10:34:45"]
[EndDate "2010.12.14"]
[EndTime "10:36:18"]
[Link "https://www.chess.com/game/live/77168647"]

1. e4 {[%clk 0:01:00]} 1... b6 {[%clk 0:01:00]} 2. d4 {[%clk 0:00:57.8]} 2... Bb7 {[%clk 0:00:59.5]} 3. d5 {[%clk 0:00:56.5]} 3... c6 {[%clk 0:00:58.2]} 4. c4 {[%clk 0:00:56.2]} 4... cxd5 {[%clk 0:00:57.3]} 5. cxd5 {[%clk 0:00:55.8]} 5... d6 {[%clk 0:00:57.3]} 6. Nc3 {[%clk 0:00:55.5]} 6... e6 {[%clk 0:00:57.3]} 7. Nf3 {[%clk 0:00:55.1]} 7... exd5 {[%clk 0:00:56.1]} 8. exd5 {[%clk 0:00:54.9]} 8... Nf6 {[%clk 0:00:54]} 9. Be2 {[%clk 0:00:54.6]} 9... Be7 {[%clk 0:00:53.3]} 10. O-O {[%clk 0:00:54]} 10... O-O {[%clk 0:00:52.9]} 11. Re1 {[%clk 0:00:53.6]} 11... Nbd7 {[%clk 0:00:52.2]} 12. Bd3 {[%clk 0:00:53.3]} 12... Nc5 {[%clk 0:00:50.8]} 13. Bc2 {[%clk 0:00:51.4]} 13... Nxd5 {[%clk 0:00:47.2]} 14. Nxd5 {[%clk 0:00:49.8]} 14... Bxd5 {[%clk 0:00:46.6]} 15. Qxd5 {[%clk 0:00:49.4]} 15... Rc8 {[%clk 0:00:41.9]} 16. Qh5 {[%clk 0:00:48.7]} 16... g6 {[%clk 0:00:39.6]} 17. Qh3 {[%clk 0:00:46.1]} 17... Bf6 {[%clk 0:00:37.4]} 18. Ng5 {[%clk 0:00:44.7]} 18... h5 {[%clk 0:00:35]} 19. Nf3 {[%clk 0:00:38.9]} 19... Ne6 {[%clk 0:00:31.1]} 20. Bh6 {[%clk 0:00:38.4]} 20... Bg7 {[%clk 0:00:29.1]} 21. Bxg7 {[%clk 0:00:35.3]} 21... Kxg7 {[%clk 0:00:29.1]} 22. Qg3 {[%clk 0:00:33.8]} 22... Nd4 {[%clk 0:00:26.9]} 23. Nd2 {[%clk 0:00:32.5]} 23... Nxc2 {[%clk 0:00:25.1]} 24. Ne4 {[%clk 0:00:31.5]} 24... d5 {[%clk 0:00:21.1]} 25. Ng5 {[%clk 0:00:31.1]} 25... Qf6 {[%clk 0:00:19.4]} 26. Re5 {[%clk 0:00:25.2]} 26... Nxa1 {[%clk 0:00:17.9]} 27. Rf5 {[%clk 0:00:23.6]} 27... Rc1# {[%clk 0:00:17.1]} 0-1